fUST/lending_fUST_20240710
["ID","MTS","AMOUNT","RATE_DAILY","PERIOD"]
[331675409,1720624372091,293.61396466,0.00025,30]
[331675410,1720624373446,5211.42806786,0.00016255,2]
[331675411,1720624377030,293.61396466,0.00025,30]
[331675412,1720624391845,5505.20654968,0.00016255,2]
[331675414,1720624403078,9621.97492075,0.00016255,2]
[331675419,1720624426056,226.85271246,0.00016255,2]
[331675420,1720624427154,3081.53440893,0.00016255,2]
[331675422,1720624457257,45235.83903307,0.00016254,2]
[331675423,1720624459198,2400.39571371,0.00016255,2]
[331675424,1720624460422,159.72145129,0.00016255,2]
[331675425,1720624462757,496.31446102,0.00016255,2]
[331675427,1720624463768,1622.915,0.00016255,2]
[331675428,1720624464451,3775.30946352,0.00016255,2]
[331675429,1720624467858,1470.92939089,0.00016255,2]
[331675435,1720624477688,496.31446102,0.00016255,2]
[331675436,1720624483575,992.76187012,0.00016255,2]
[331675439,1720624499745,174.69015234,0.00016255,2]
[331675440,1720624515213,268.41032935,0.00016255,7]
[331675441,1720624515808,1636.25072622,0.00016255,2]
[331675442,1720624517388,196.28732881,0.00016255,2]
[331675444,1720624521224,1011.16244954,0.00016255,2]
[331675445,1720624528434,3775.30946352,0.00016255,2]
[331675446,1720624544831,1622.915,0.00016255,2]
[331675447,1720624546241,259.39180364,0.00016255,2]
[331675448,1720624550090,525.56960238,0.00016255,2]
[331675449,1720624566143,872.23295296,0.00016255,2]
[331675450,1720624568089,2464.81371529,0.00016255,2]
[331675451,1720624593690,496.31446102,0.00016255,2]
[331675452,1720624598143,3081.53440893,0.00016255,2]
[331675453,1720624630781,1622.915,0.00016255,2]
[331675454,1720624638440,2268.06827798,0.00016255,2]
[331675455,1720624650769,154.79952594,0.00016255,2]
[331675456,1720624661959,159.72145129,0.00016255,2]
[331675457,1720624679694,496.31446102,0.00016255,2]
[331675460,1720624717098,991.7090549,0.00016255,2]
[331675461,1720624718932,1622.915,0.00016255,2]
[331675462,1720624749320,1636.25072622,0.00016255,2]
[331675463,1720624749640,3081.53440893,0.00016255,2]
[331675464,1720624768700,496.31446102,0.00016255,2]
[331675465,1720624775869,154.99573309,0.00016255,2]
[331675466,1720624812609,6266.38582075,0.00016255,2]
[331675467,1720624816568,1622.915,0.00016255,2]
[331675469,1720624833759,374.75657396,0.00016255,2]
[331675471,1720624836457,159.72145129,0.00016255,2]
[331675472,1720624878100,525.56960238,0.00016255,2]
[331675473,1720624890708,496.31446102,0.00016255,2]
[331675474,1720624893399,154.89403215,0.00016255,2]
[331675475,1720624920705,496.31446102,0.00016255,2]
[331675476,1720624936434,1622.915,0.00016255,2]
[331675477,1720624936835,1636.25072622,0.00016255,2]
[331675478,1720624945153,1200.66750522,0.00016255,2]
[331675479,1720624958841,1987.94718132,0.00016255,2]
[331675480,1720624970071,4730.15577801,0.00016255,2]
[331675482,1720625008957,159.72145129,0.00016255,2]
[331675483,1720625013512,643.50991421,0.00016255,2]
[331675484,1720625015260,377.5047869,0.00016255,2]
[331675485,1720625016447,1622.915,0.00016255,2]
[331675487,1720625079251,1489.24109091,0.00016255,2]
[331675488,1720625114611,347.16860833,0.00016255,2]
[331675490,1720625121444,1622.915,0.00016255,2]
[331675491,1720625131854,1702.1035213,0.00016255,2]
[331675492,1720625134351,1987.94718132,0.00016255,2]
[331675493,1720625164105,823.23037923,0.00016255,2]
[331675494,1720625183473,159.72145129,0.00016255,2]
[331675495,1720625186385,155.05188196,0.00016255,2]
[331675496,1720625207449,1622.915,0.00016255,2]
[331675497,1720625229855,154.93166857,0.00016255,2]
[331675498,1720625229894,222.83479055,0.00016255,2]
[331675499,1720625241479,725.04696611,0.00016255,2]
[331675500,1720625243523,155.97882791,0.00016255,2]
[331675502,1720625263231,496.31446102,0.00016255,2]
[331675504,1720625289464,1622.915,0.00016255,2]
[331675505,1720625300097,287.54934573,0.00016255,2]
[331675506,1720625302961,1987.94718132,0.00016255,2]
[331675507,1720625304288,157.52474722,0.00016255,2]
[331675508,1720625318162,154.65203293,0.00016255,2]
[331675509,1720625325668,154.65203293,0.00016255,2]
[331675510,1720625328234,209.91280818,0.00016255,2]
[331675511,1720625341313,183.26650708,0.00016255,2]
[331675512,1720625347148,9621.97492075,0.00016255,2]
[331675513,1720625354645,6266.38582075,0.00016255,2]
[331675514,1720625355176,3081.53440893,0.00016255,2]
[331675515,1720625355293,412.59810264,0.00016255,2]
[331675516,1720625359245,154.65203293,0.00016255,2]
[331675517,1720625360114,155.42805707,0.00016255,2]
[331675518,1720625367994,-786.51289497,0.00018313,2]
[331675520,1720625368036,-786.51289497,0.00018313,2]
[331675523,1720625368091,-181.11564821,0.00018313,2]
[331675528,1720625371984,11078.18304274,0.00016255,2]
[331675529,1720625388476,159.72145129,0.00016255,2]
[331675530,1720625389245,154.65203293,0.00016255,2]
[331675531,1720625389468,310.935,0.00016255,2]
[331675532,1720625392688,-812.44735127,0.00018313,2]
[331675533,1720625392740,-433.41121058,0.00018313,2]
[331675534,1720625392770,-379.03614069,0.00018698,3]
[331675535,1720625392983,-13.65839616,0.00018698,3]
[331675536,1720625406608,854.16232743,0.00016255,2]
[331675537,1720625407242,6986.6266304,0.00016255,2]
[331675538,1720625414206,525.56960238,0.00016255,2]
[331675539,1720625430471,5211.42806786,0.00016255,2]
[331675567,1720625432510,-227.69780555,0.00018798,2]
[331675568,1720625432520,-300.0,0.00018898,2]
[331675569,1720625432530,-1435.70778162,0.00018899,2]
[331675570,1720625432541,-249.10442789,0.00018899,2]
[331675571,1720625432551,-623.19351136,0.000189,2]
[331675572,1720625433676,-2775.4739826,0.000189,2]
[331675574,1720625433686,-250.0,0.00019041,2]
[331675576,1720625433696,-197.30576581,0.00019056,2]
[331675578,1720625433705,-1985.88483877,0.00019164,2]
[331675713,1720625440497,-1987.94718132,0.00018899,2]
[331675714,1720625440507,-197.3930527,0.00019165,2]
[331675715,1720625440517,-440.9643211,0.00019178,4]
[331675716,1720625440527,-162.436618,0.00019459,2]
[331675717,1720625440537,-412.59810264,0.00019703,2]
[331675718,1720625440547,-289.60506298,0.00019703,2]
[331675719,1720625440558,-237.12083986,0.00019703,2]
[331675720,1720625440567,-293.22059287,0.00019703,2]
[331675721,1720625440577,-24900.0,0.00019941,2]
[331675722,1720625440587,-2000.0,0.0002,2]
[331675723,1720625440597,-3060.49292004,0.0002,2]
[331675724,1720625440607,-368.57284336,0.0002,2]
[331675725,1720625440618,-420.0,0.00020788,2]
[331675726,1720625440628,-391.175398,0.00021096,2]
[331675727,1720625440638,-166.666666,0.00021918,2]
[331675728,1720625440648,-166.666666,0.00022431,2]
[331675729,1720625440659,-587.0,0.00022867,2]
[331675730,1720625440671,-166.666666,0.00022944,2]
[331675731,1720625440681,-166.666666,0.00023456,2]
[331675732,1720625440691,-3398.66749396,0.000239,2]
[331675733,1720625440701,-166.666666,0.00023969,2]
[331675734,1720625440711,-2128.52771571,0.0002448,2]
[331675735,1720625440721,-1157.97666863,0.00024481,2]
[331675736,1720625440731,-166.666666,0.00024482,2]
[331675737,1720625440741,-5615.99,0.0002496,3]
[331675738,1720625440751,-1156.5,0.0002497,3]
[331675739,1720625440761,-578.25,0.0002497,3]
[331675740,1720625440771,-289.12,0.0002497,3]
[331675741,1720625440781,-867.39,0.0002497,3]
[331675742,1720625440791,-10188.34,0.0002497,3]
[331675743,1720625440802,-8490.29,0.0002497,3]
[331675744,1720625440811,-16026.73499795,0.0002498,3]
[331675745,1720625440829,-582.4952791,0.0002498,3]
[331675746,1720625440846,-62238.20103175,0.0002498,3]
[331675747,1720625440857,-189.26423783,0.00025,2]
[331675748,1720625440866,-763.93203298,0.00025,2]
[331675749,1720625440876,-225.75818488,0.00025,2]
[331675750,1720625440886,-428.33485551,0.00025,2]
[331675751,1720625440895,-154.7212004,0.00025,2]
[331675752,1720625440905,-500.0,0.00025,3]
[331675753,1720625440914,-3427.22141223,0.00025103,2]
[331675754,1720625440924,-600.0,0.00025153,2]
[331675755,1720625440934,-435.20606436,0.00025192,2]
[331675756,1720625440943,-54518.77779711,0.00025193,5]
[331675757,1720625440953,-78847.4313088,0.00025194,3]
[331675758,1720625440963,-78847.4313088,0.00025194,3]
[331675759,1720625440972,-52142.01242753,0.00025204,2]
[331675760,1720625440983,-3000.0,0.000255,2]
[331675761,1720625440992,-3000.0,0.0002551,2]
[331675762,1720625441002,-78847.4313088,0.0002551,3]
[331675763,1720625441011,-3000.0,0.0002552,2]
[331675764,1720625441021,-3000.0,0.0002553,2]
[331675765,1720625441030,-3000.0,0.0002554,2]
[331675766,1720625441041,-3000.0,0.0002555,2]
[331675767,1720625441051,-4436.048179,0.0002556,2]
[331675768,1720625441061,-3427.2214122,0.00025651,2]
[331675769,1720625441072,-500.0,0.00026,3]
[331675770,1720625441081,-500.0,0.00026051,2]
[331675771,1720625441091,-241.47792881,0.00026051,2]
[331675772,1720625441101,-167.04605766,0.00026051,2]
[331675773,1720625441114,-521.09529269,0.00026051,2]
[331675774,1720625441125,-500.0,0.00026051,2]
[331675775,1720625441134,-500.0,0.00026051,2]
[331675776,1720625441143,-413.87095812,0.00026051,2]
[331675777,1720625441153,-500.0,0.00026051,2]
[331675778,1720625441163,-500.0,0.00026051,2]
[331675779,1720625441172,-500.0,0.00026051,2]
[331675780,1720625441182,-573.54328621,0.00026051,2]
[331675781,1720625441191,-500.0,0.00026051,2]
[331675782,1720625441201,-78847.4313088,0.00026052,3]
[331675783,1720625441210,-30000.0,0.00026062,2]
[331675784,1720625441221,-200.0,0.000261,2]
[331675785,1720625441230,-3427.2214122,0.000262,2]
[331675786,1720625441240,-2313.0,0.0002634,3]
[331675787,1720625441249,-1156.5,0.0002634,3]
[331675788,1720625441259,-578.24,0.0002634,3]
[331675789,1720625441268,-3427.2214122,0.00026748,2]
[331675790,1720625441279,-500.0,0.00027,3]
[331675791,1720625441288,-168.363412,0.00027123,2]
[331675792,1720625441297,-168.363412,0.00027123,120]
[331675793,1720625441307,-5218.53085883,0.00027184,2]
[331675794,1720625441316,-322.2543872,0.00027194,2]
[331675795,1720625441326,-391.175398,0.00027195,2]
[331675796,1720625441335,-3427.2214122,0.00027296,2]
[331675797,1720625441345,-469.35933792,0.00027397,2]
[331675798,1720625441358,-500.0,0.00027397,2]
[331675799,1720625441368,-500.0,0.00027397,2]
[331675800,1720625441378,-500.0,0.00027397,2]
[331675801,1720625441388,-500.0,0.00027397,2]
[331675802,1720625441397,-500.0,0.00027397,2]
[331675803,1720625441410,-500.0,0.00027397,2]
[331675804,1720625441442,-500.0,0.00027397,2]
[331675805,1720625441465,-500.0,0.00027397,2]
[331675806,1720625441487,-500.0,0.00027397,2]
[331675807,1720625441509,-473.25352313,0.00027397,2]
[331675808,1720625441532,-500.0,0.00027397,2]
[331675809,1720625441555,-500.0,0.00027397,2]
[331675810,1720625441576,-500.0,0.00027397,2]
[331675811,1720625441598,-500.0,0.00027397,2]
[331675812,1720625441620,-500.0,0.00027397,2]
[331675813,1720625441640,-500.0,0.00027397,2]
[331675814,1720625441650,-500.0,0.00027397,2]
[331675815,1720625441660,-500.0,0.00027397,2]
[331675816,1720625441669,-500.0,0.00027397,2]
[331675817,1720625441680,-500.0,0.00027397,2]
[331675818,1720625441690,-500.0,0.00027397,2]
[331675819,1720625441700,-500.0,0.00027397,2]
[331675820,1720625441711,-500.0,0.00027397,2]
[331675821,1720625441721,-500.0,0.00027397,2]
[331675822,1720625441731,-500.0,0.00027397,2]
[331675823,1720625441740,-500.0,0.00027397,2]
[331675824,1720625441750,-500.0,0.00027397,2]
[331675825,1720625441760,-500.0,0.00027397,2]
[331675826,1720625441770,-500.0,0.00027397,2]
[331675827,1720625441780,-500.0,0.00027397,2]
[331675828,1720625441790,-500.0,0.00027397,2]
[331675829,1720625441801,-500.0,0.00027397,2]
[331675830,1720625441811,-500.0,0.00027397,2]
[331675831,1720625441822,-500.0,0.00027397,2]
[331675832,1720625441831,-500.0,0.00027397,2]
[331675833,1720625441841,-500.0,0.00027397,2]
[331675834,1720625441850,-500.0,0.00027397,2]
[331675835,1720625441862,-258.8513903,0.00027397,120]
[331675836,1720625441871,-400.0,0.0002747,2]
[331675837,1720625441880,-100000.0,0.00028,2]
[331675838,1720625441891,-500.0,0.00028,3]
[331675839,1720625441900,-200.67217759,0.00028,2]
[331675840,1720625441910,-3398.66749396,0.000289,2]
[331675841,1720625441919,-500.0,0.00029,3]
[331675842,1720625441928,-600.0,0.00029247,2]
[331675843,1720625441938,-153.0,0.00029397,2]
[331675844,1720625441948,-154.66746495,0.00029772,2]
[331675845,1720625441957,-154.65203293,0.00029823,2]
[331675846,1720625441967,-1060.84230124,0.00029823,2]
[331675847,1720625441977,-492.75452642,0.00029879,2]
[331675848,1720625441987,-308.51871438,0.00029879,2]
[331675849,1720625441996,-935.07993032,0.00029901,2]
[331675850,1720625442006,-2422.80787231,0.00029903,2]
[331675851,1720625442016,-1065.81451026,0.00029904,2]
[331675852,1720625442025,-1065.81451026,0.00029904,2]
[331675853,1720625442034,-1105.86744094,0.00029904,2]
[331675854,1720625442044,-1105.86744094,0.00029979,2]
[331675855,1720625442055,-948.9256647,0.00029979,2]
[331675856,1720625442064,-885.90879381,0.00029979,2]
[331675857,1720625442074,-471.68236775,0.0003,4]
[331675858,1720625442084,-170.47875529,0.0003,4]
[331675859,1720625442094,-284.6000077,0.0003,3]
[331675860,1720625442105,-5611.49557264,0.0003,4]
[331675861,1720625442115,-154.65203293,0.0003,4]
[331675862,1720625442124,-178.26724409,0.0003,7]
[331675863,1720625442134,-3000.0,0.0003,2]
[331675864,1720625442143,-250.88503092,0.0003,2]
[331675865,1720625442153,-8550.42241934,0.0003,5]
[331675866,1720625442162,-799.40583462,0.0003,3]
[331675867,1720625442172,-162.0,0.0003,2]
[331675868,1720625442181,-3000.0,0.0003001,2]
[331675869,1720625442191,-3000.0,0.0003002,2]
[331675870,1720625442202,-3000.0,0.0003003,2]
[331675871,1720625442212,-3000.0,0.0003004,2]
[331675872,1720625442221,-3000.0,0.0003005,2]
[331675873,1720625442231,-3000.0,0.0003006,2]
[331675874,1720625442240,-3000.0,0.0003007,2]
[331675875,1720625442250,-3000.0,0.0003008,2]
[331675876,1720625442259,-3000.0,0.0003009,2]
[331675877,1720625442269,-3000.0,0.000301,2]
[331675878,1720625442279,-3000.0,0.0003011,2]
[331675879,1720625442289,-3000.0,0.0003012,2]
[331675880,1720625442299,-3000.0,0.0003013,3]
[331675881,1720625442309,-3000.0,0.0003014,3]
[331675882,1720625442318,-3000.0,0.0003015,3]
[331675883,1720625442447,-3000.0,0.0003016,3]
[331675884,1720625442457,-3000.0,0.0003017,3]
[331675885,1720625442466,-3000.0,0.0003018,3]
[331675886,1720625442475,-3000.0,0.0003019,3]
[331675887,1720625442484,-3000.0,0.000302,3]
[331675888,1720625442493,-3000.0,0.0003021,3]
[331675889,1720625442502,-3000.0,0.0003022,3]
[331675890,1720625442511,-3000.0,0.0003023,3]
[331675891,1720625442520,-3000.0,0.0003024,3]
[331675892,1720625442529,-3000.0,0.0003025,3]
[331675893,1720625442539,-3000.0,0.0003026,3]
[331675894,1720625442549,-3000.0,0.0003027,3]
[331675895,1720625442559,-3000.0,0.0003028,3]
[331675896,1720625442568,-3000.0,0.0003029,3]
[331675897,1720625442579,-3000.0,0.000303,3]
[331675898,1720625442588,-389.13207068,0.00030303,30]
[331675899,1720625442598,-151.0,0.00030306,3]
[331675900,1720625442608,-3000.0,0.0003031,3]
[331675901,1720625442619,-3000.0,0.0003032,3]
[331675902,1720625442628,-3000.0,0.0003033,3]
[331675903,1720625442637,-3000.0,0.0003034,3]
[331675904,1720625442646,-3000.0,0.0003035,3]
[331675905,1720625442655,-3000.0,0.0003036,3]
[331675906,1720625442666,-3000.0,0.0003037,3]
[331675907,1720625442677,-212.02681,0.0003037,7]
[331675908,1720625442686,-212.02681,0.0003037,7]
[331675909,1720625442697,-745.875859,0.0003037,7]
[331675910,1720625442706,-745.875859,0.0003037,7]
[331675911,1720625442715,-151.0,0.0003037,7]
[331675912,1720625442725,-151.0,0.0003037,7]
[331675913,1720625442735,-3000.0,0.0003038,3]
[331675914,1720625442744,-3000.0,0.0003039,4]
[331675915,1720625442754,-3000.0,0.000304,4]
[331675916,1720625442763,-3000.0,0.0003041,4]
[331675917,1720625442772,-3000.0,0.0003042,4]
[331675918,1720625442781,-3000.0,0.0003043,4]
[331675919,1720625442790,-3000.0,0.0003044,4]
[331675920,1720625442799,-3000.0,0.0003045,4]
[331675921,1720625442809,-3000.0,0.0003046,4]
[331675922,1720625442818,-3467.154936,0.0003047,4]
[331675923,1720625442828,-504.87786439,0.00031,7]
[331675924,1720625442838,-151.0,0.00031213,4]
[331675925,1720625442847,-800.0,0.00031219,2]
[331675926,1720625442857,-298.34076634,0.00031251,4]
[331675927,1720625442866,-1403.86304612,0.000318,3]
[331675928,1720625442875,-150.0,0.00031923,2]
[331675929,1720625442884,-1406.0,0.00031923,2]
[331675930,1720625442893,-500.0,0.00032,3]
[331675931,1720625442903,-151.0,0.0003212,4]
[331675932,1720625442912,-257.99811301,0.00032272,4]
[331675933,1720625442921,-507.49225067,0.00032876,7]
[331675934,1720625442931,-500.0,0.00032876,7]
[331675936,1720625442940,-500.0,0.00032876,7]
[331675937,1720625442950,-513.95739066,0.00032876,7]
[331675938,1720625442961,-500.0,0.00032876,7]
[331675940,1720625442970,-500.0,0.00032876,7]
[331675941,1720625442979,-500.0,0.00032876,7]
[331675943,1720625442988,-514.80124812,0.00032876,7]
[331675945,1720625442997,-512.18271713,0.00032876,7]
[331675947,1720625443008,-500.0,0.00032876,7]
[331675948,1720625443017,-500.0,0.00032876,7]
[331675950,1720625443026,-500.0,0.00032876,7]
[331675953,1720625443038,-500.0,0.00032876,7]
[331675954,1720625443048,-500.0,0.00032876,7]
[331675956,1720625443058,-500.0,0.00032876,7]
[331675958,1720625443068,-500.0,0.00032876,7]
[331675959,1720625443077,-503.17023512,0.00032876,7]
[331675961,1720625443086,-500.0,0.00032876,7]
[331675963,1720625443096,-558.52923756,0.00032876,7]
[331675965,1720625443105,-500.0,0.00032876,7]
[331675967,1720625443115,-317.49296519,0.00032876,7]
[331675969,1720625443125,-522.65825356,0.00032876,7]
[331675970,1720625443134,-500.0,0.00032876,7]
[331675972,1720625443143,-299.32475553,0.00032876,7]
[331675975,1720625443152,-500.0,0.00032876,7]
[331675978,1720625443162,-500.0,0.00032876,7]
[331675981,1720625443171,-500.0,0.00032876,7]
[331675984,1720625443180,-500.0,0.00032876,7]
[331675986,1720625443189,-624.94,0.00032876,7]
[331675990,1720625443200,-1500.0,0.00032876,7]
[331675993,1720625443210,-500.0,0.00032876,7]
[331675996,1720625443219,-501.04221571,0.00032876,7]
[331675999,1720625443228,-513.16432097,0.00032876,7]
[331676002,1720625443237,-517.43145766,0.00032876,7]
[331676004,1720625443247,-500.0,0.00032876,7]
[331676006,1720625443256,-500.0,0.00032876,7]
[331676008,1720625443266,-1641.71,0.00032876,7]
[331676010,1720625443275,-500.0,0.00032876,7]
[331676012,1720625443286,-500.0,0.00032876,7]
[331676014,1720625443296,-377.28202409,0.00032876,7]
[331676016,1720625443306,-500.0,0.00032876,7]
[331676018,1720625443316,-463.86524635,0.00032876,7]
[331676020,1720625443326,-500.0,0.00032876,7]
[331676021,1720625443338,-453.82344019,0.00032876,7]
[331676022,1720625443347,-511.45178003,0.00032876,7]
[331676023,1720625443358,-500.0,0.00032876,7]
[331676024,1720625443367,-513.41529748,0.00032876,7]
[331676025,1720625443376,-500.0,0.00032876,7]
[331676026,1720625443386,-500.0,0.00032876,7]
[331676027,1720625443395,-512.94377566,0.00032876,7]
[331676028,1720625443404,-574.99385574,0.00032876,7]
[331676029,1720625443414,-500.0,0.00032876,7]
[331676030,1720625443424,-507.90842131,0.00032876,7]
[331676031,1720625443433,-813.58,0.00032876,7]
[331676032,1720625443443,-290.7403546,0.00032876,7]
[331676033,1720625443453,-500.0,0.00032876,7]
[331676034,1720625443465,-500.0,0.00032876,7]
[331676035,1720625443475,-1294.08,0.00032876,7]
[331676036,1720625443484,-527.25979344,0.00032876,7]
[331676037,1720625443494,-500.0,0.00032876,7]
[331676038,1720625443503,-390.66100992,0.00032876,7]
[331676039,1720625443512,-512.26689138,0.00032876,7]
[331676040,1720625443522,-500.0,0.00032876,7]
[331676041,1720625443531,-505.7015361,0.00032876,7]
[331676042,1720625443541,-628.47,0.00032876,7]
[331676043,1720625443552,-220.78763824,0.00032876,7]
[331676044,1720625443562,-500.0,0.00032876,7]
[331676045,1720625443572,-500.0,0.00032876,7]
[331676046,1720625443582,-500.0,0.00032876,7]
[331676047,1720625443592,-500.0,0.00032876,7]
[331676048,1720625443601,-595.0,0.00032876,2]
[331676049,1720625443612,-595.0,0.00032876,2]
[331676050,1720625443621,-595.0,0.00032876,2]
[331676051,1720625443630,-595.0,0.00032876,2]
[331676052,1720625443640,-595.0,0.00032876,2]
[331676053,1720625443649,-595.0,0.00032876,2]
[331676054,1720625443659,-531.62223007,0.00032876,7]
[331676055,1720625443674,-200.0,0.00032876,7]
[331676056,1720625443683,-955.82,0.00032876,7]
[331676057,1720625443693,-632.0588407,0.00032876,7]
[331676058,1720625443703,-500.0,0.00032876,7]
[331676059,1720625443712,-500.0,0.00032876,7]
[331676060,1720625443722,-500.0,0.00032876,7]
[331676061,1720625443732,-503.78074664,0.00032876,7]
[331676062,1720625443741,-505.76064157,0.00032876,7]
[331676063,1720625443751,-500.0,0.00032876,7]
[331676064,1720625443760,-500.0,0.00032876,7]
[331676065,1720625443769,-500.0,0.00032876,7]
[331676066,1720625443779,-510.60755786,0.00032876,7]
[331676067,1720625443788,-500.0,0.00032876,7]
[331676068,1720625443797,-500.0,0.00032876,7]
[331676069,1720625443806,-500.0,0.00032876,7]
[331676070,1720625443815,-500.0,0.00032876,7]
[331676071,1720625443824,-500.0,0.00032876,7]
[331676072,1720625443834,-500.0,0.00032876,7]
[331676073,1720625443843,-500.0,0.00032876,7]
[331676074,1720625443853,-507.59370746,0.00032876,7]
[331676075,1720625443863,-500.0,0.00032876,7]
[331676076,1720625443872,-500.0,0.00032876,7]
[331676077,1720625443882,-503.65426862,0.00032876,7]
[331676078,1720625443891,-906.72,0.00032876,7]
[331676079,1720625443903,-500.0,0.00032876,7]
[331676080,1720625443913,-506.28613852,0.00032876,7]
[331676081,1720625443923,-500.0,0.00032876,7]
[331676082,1720625443933,-502.39172908,0.00032876,7]
[331676083,1720625443943,-507.29056014,0.00032876,7]
[331676084,1720625443952,-507.95538167,0.00032876,7]
[331676085,1720625443962,-500.0,0.00032876,7]
[331676086,1720625443972,-500.0,0.00032876,7]
[331676087,1720625443983,-223.40288364,0.00032876,7]
[331676088,1720625443995,-796.12,0.00032876,7]
[331676089,1720625444004,-823.45,0.00032876,7]
[331676090,1720625444013,-500.0,0.00032876,7]
[331676091,1720625444022,-500.0,0.00032876,7]
[331676092,1720625444032,-500.82595431,0.00032876,3]
[331676093,1720625444042,-177.68416937,0.00032876,7]
[331676094,1720625444053,-734.21,0.00032876,7]
[331676095,1720625444064,-500.0,0.00032876,7]
[331676096,1720625444074,-524.63147779,0.00032876,7]
[331676097,1720625444083,-509.80991663,0.00032876,7]
[331676098,1720625444092,-500.0,0.00032876,7]
[331676099,1720625444102,-500.0,0.00032876,7]
[331676100,1720625444112,-500.0,0.00032876,2]
[331676101,1720625444122,-500.0,0.00032876,7]
[331676102,1720625444131,-500.0,0.00032876,7]
[331676103,1720625444140,-500.0,0.00032876,7]
[331676104,1720625444149,-500.0,0.00032876,2]
[331676105,1720625444160,-500.0,0.00032876,2]
[331676106,1720625444169,-524.54736697,0.00032876,7]
[331676107,1720625444179,-500.0,0.00032876,7]
[331676108,1720625444189,-153.0,0.00032876,2]
[331676109,1720625444198,-500.0,0.00032876,7]
[331676110,1720625444207,-500.0,0.00032876,7]
[331676111,1720625444216,-645.67381914,0.00032876,7]
[331676112,1720625444226,-583.1512659,0.00032876,7]
[331676113,1720625444238,-500.0,0.00032876,7]
[331676114,1720625444247,-500.0,0.00032876,7]
[331676115,1720625444256,-535.39194579,0.00032876,7]
[331676116,1720625444267,-562.68953031,0.00032876,7]
[331676117,1720625444276,-516.38473904,0.00032876,7]
[331676118,1720625444286,-564.74916678,0.00032876,7]
[331676119,1720625444296,-500.0,0.00032876,7]
[331676120,1720625444305,-538.08993831,0.00032876,7]
[331676121,1720625444314,-500.0,0.00032876,7]
[331676122,1720625444323,-509.82568594,0.00032876,7]
[331676123,1720625444332,-516.65663321,0.00032876,7]
[331676124,1720625444341,-523.03987634,0.00032876,7]
[331676125,1720625444352,-500.0,0.00032876,7]
[331676126,1720625444363,-551.50224524,0.00032876,7]
[331676127,1720625444372,-511.07806878,0.00032876,7]
[331676128,1720625444382,-500.0,0.00032876,7]
[331676129,1720625444390,-500.0,0.00032876,7]
[331676130,1720625444400,-1451.42,0.00032876,7]
[331676131,1720625444411,-500.0,0.00032876,7]
[331676132,1720625444420,-349.1670993,0.00032876,7]
[331676133,1720625444431,-500.0,0.00032876,7]
[331676134,1720625444440,-151.0,0.00032876,7]
[331676135,1720625444450,-500.0,0.00032876,7]
[331676136,1720625444461,-500.0,0.00032876,7]
[331676137,1720625444470,-500.0,0.00032876,7]
[331676138,1720625444480,-518.20138431,0.00032876,7]
[331676139,1720625444490,-507.81925589,0.00032876,7]
[331676140,1720625444500,-500.0,0.00032876,7]
[331676141,1720625444510,-500.0,0.00032876,7]
[331676142,1720625444520,-500.0,0.00032876,7]
[331676143,1720625444530,-518.07809964,0.00032876,7]
[331676144,1720625444541,-515.6080959,0.00032876,7]
[331676145,1720625444550,-151.0,0.00032876,7]
[331676146,1720625444560,-715.85,0.00032876,7]
[331676147,1720625444570,-514.08657191,0.00032876,7]
[331676148,1720625444580,-500.0,0.00032876,7]